[Event "FIDE WSCC 50 2022"]
[Site "Assisi"]
[Date "2022.11.26"]
[Round "11.11"]
[White "Zeller, Frank"]
[Black "Al-Ali, Hussein Ali Hussein"]
[Result "1/2-1/2"]
[ECO "D52"]
[WhiteElo "2359"]
[BlackElo "2231"]
[Annotator "TA"]
[PlyCount "90"]
[EventDate "2022.11.14"]
[EventType "swiss"]
[EventCountry "ITA"]
[SourceTitle "playchess.com"]
[Source "ChessBase"]
[SourceQuality "1"]
[TimeControl "40/5400+30:1800+30"]

{[%evp 24,90,70,70,104,110,99,79,89,77,79,66,63,50,48,70,93,77,60,45,122,121,114,123,121,128,125,135,126,115,164,152,157,121,147,123,125,134,109,82,85,87,70,75,62,0,41,0,14,-50,66,61,119,81,353,186,183,203,201,185,205,212,207,190,368,369,416,35,50]} 1. d4 {[%emt 0:00:40]} d5 {[%emt 0:00:09]} 2. c4 {[%emt 0:00:13]} e6 {[%emt 0:00:08]} 3. Nf3 {[%emt 0:00:33]} Nf6 {[%emt 0:00:12]} 4. Nc3 {[%emt 0:00:33]} c6 {[%emt 0:01:06]} 5. Bg5 {[%emt 0:00:30]} Nbd7 {[%emt 0:00:06]} 6. e3 {[%emt 0:00:24]} Qa5 {[%emt 0:00:55]} 7. Nd2 {[%emt 0:00:26]} Bb4 {[%emt 0:00:17]} 8. Qc2 {[%emt 0:01:15]} Ne4 {[%emt 0:03:11]} 9. Ndxe4 {[%emt 0:01:52]} dxe4 {[%emt 0:00:10]} 10. Bh4 {[%emt 0:04:15]} O-O {[%emt 0:00:35]} 11. Be2 {[%emt 0:00:18]} e5 {[%emt 0:00:19]} 12. O-O {[%emt 0:09:58]} exd4 {[%emt 0:00:57]} 13. exd4 {[%emt 0:01:07]} f5 {[%emt 0:03:07] D52: Queen's Gambit Declined: Cambridge Springs Variation.} 14. f3 {[%emt 0:12:21] [#]} e3 $146 {[%emt 0:09:29]} ({Predecessor:} 14... exf3 15. Bxf3 Nb6 16. c5 Bxc3 17. bxc3 Nd5 18. Rae1 Nxc3 19. Qb3+ Kh8 20. Qf7 Rg8 {1-0 (30) Vera,S (2173)-Huanca,E (1948) Cochabamba 2019}) 15. f4 {[%emt 0:16:18]} Re8 {[%emt 0:02:17] White is better.} 16. Bd3 {[%emt 0:07:33]} Nf8 {[%emt 0:00:27]} 17. Rae1 {[%emt 0:00:43]} Ng6 {[%emt 0:03:05] Against a3} 18. Bg3 {[%emt 0:01:16][%cal Bh4g3,Bg3e1,Be1c3][%mdl 32]} Qd8 {[%emt 0:02:27]} 19. a3 {[%emt 0:03:03]} (19. Bxf5 Bxf5 20. Qxf5 Qxd4 $15) 19... Bf8 {[%emt 0:03:39]} 20. Ne2 {[%emt 0:00:28]} (20. Bxf5 Bxf5 21. Qxf5 Qxd4 $15) 20... Qf6 {[%emt 0:02:20]} 21. Rd1 {[%emt 0:00:54]} c5 {[%emt 0:00:56]} ({Black should play} 21... Bd7 $14) 22. d5 $16 {[%emt 0:03:42]} Bd7 {[%emt 0:00:56]} 23. Be1 {[%emt 0:00:11]} Bd6 {[%emt 0:00:24]} 24. Bc3 {[%emt 0:00:05]} Qf7 {[%emt 0:00:14]} 25. Rf3 {[%emt 0:01:57]} Re7 {[%emt 0:03:00]} 26. Rdf1 {[%emt 0:01:34]} a6 {[%emt 0:04:23]} (26... Rf8 $16) 27. Rg3 $18 {[%emt 0:02:07][%cal Oh2h4]} Qf8 {[%emt 0:00:14] Against h4} 28. Kh1 {[%emt 0:03:04]} b5 {[%emt 0:01:17]} 29. b3 {[%emt 0:00:16]} bxc4 {[%emt 0:00:20]} 30. bxc4 {[%emt 0:00:05]} (30. Bxc4 $6 Bb5 $14) 30... Rb8 {[%emt 0:00:10]} 31. Rff3 {[%emt 0:06:29]} Rb7 {[%emt 0:01:06]} 32. Rg5 {[%emt 0:05:16]} (32. Rxe3 {simplifies} Rxe3 33. Rxe3 Bxf4 34. Nxf4 Nxf4 35. Bf1) 32... Qb8 {[%emt 0:03:49][%cal Rg6f4]} 33. g3 {[%emt 0:05:41]} (33. Bxf5 $2 Bxf5 34. Qxf5 Rb1+ 35. Ng1 e2 $19) (33. g4 {is interesting.} Nxf4 34. gxf5 Ba4 35. Qxa4 Nxd3 36. f6) 33... Rb3 {[%emt 0:01:05]} 34. h4 {[%emt 0:06:05]} (34. Rf1 $14) 34... Rxa3 {[%emt 0:04:16]} 35. h5 {[%emt 0:02:56]} Nf8 {[%emt 0:00:05]} (35... Ba4 $2 36. Qc1 Qb3 37. hxg6 $18) 36. Bxf5 {[%emt 0:01:28] [#]} (36. Qc1 $11 Ra2 37. Rxe3) 36... Bxf5 {[%emt 0:00:10]} (36... Rxc3 $1 $15 37. Nxc3 (37. Qxc3 $2 Bxf5 38. Rxe3 Qb1+ 39. Kg2 Be4+ 40. Kf2 h6 $19) 37... h6 38. Bxd7 (38. Rg4 $2 Bxf5 39. Qxf5 Qb2 $19) 38... hxg5) 37. Rxf5 $14 {[%emt 0:00:21][%cal Oh5h6]} (37. Qxf5 $2 {[#]} Rxc3 $1 38. Nxc3 e2 39. Nxe2 Rxe2 $19) 37... Rxc3 {[%emt 0:00:57]} 38. Nxc3 $16 {[%emt 0:00:15] Black must now prevent Ne4.} Qc8 $2 {[%emt 0:07:16][%mdl 8192]} (38... Qb4 $16) 39. g4 {[%emt 0:00:49]} (39. h6 $142) 39... g6 $18 {[%emt 0:00:54]} 40. Rg5 {[%emt 0:01:57]} Qe8 {[%emt 0:02:01] Strongly threatening ...e2.} 41. Ne2 {[%emt 0:16:09]} h6 {[%emt 0:00:31]} 42. Rxg6+ {[%emt 0:00:46]} Nxg6 {[%emt 0:00:05]} 43. hxg6 {[%emt 0:00:23]} (43. Qxg6+ Qxg6 44. hxg6 Re4 $14) 43... Re4 $2 {[%emt 0:01:07]} (43... Rg7 {was worth a try.} 44. Kg2 (44. f5 Qe5 $11) 44... Rxg6) 44. Kg2 {[%emt 0:02:09]} (44. Qd3 a5 45. Kg2 Kg7 $18) 44... Kg7 {[%emt 0:01:34]} 45. Kf1 $2 {[%emt 0:11:06]} ({Weaker is} 45. Ng3 e2 46. Qc3+ (46. Nxe4 $2 {is the wrong capture.} e1=N+ 47. Kh3 Nxc2 $19) (46. Qxe4 Qxe4 47. Nxe4 e1=Q $15) 46... Be5 $16) (45. Qb2+ $18 Kg8 46. Qf6) 45... Qxg6 {[%emt 0:02:08] Weighted Error Value: White=0.36/Black=0.35} 1/2-1/2

[Event "FIDE WSCC 50 2022"]
[Site "Assisi"]
[Date "2022.11.26"]
[Round "11.12"]
[White "Prie, Eric"]
[Black "Dishman, Stephen"]
[Result "1-0"]
[ECO "B06"]
[WhiteElo "2356"]
[BlackElo "2255"]
[Annotator "TA"]
[PlyCount "75"]
[EventDate "2022.11.14"]
[EventType "swiss"]
[EventCountry "ITA"]
[SourceTitle "playchess.com"]
[Source "ChessBase"]
[SourceQuality "1"]
[TimeControl "40/5400+30:1800+30"]

{[%evp 14,75,20,4,11,-4,15,18,14,17,45,25,24,0,20,0,35,37,74,72,65,20,80,51,77,79,118,97,109,70,113,111,104,109,125,119,260,249,256,250,252,249,291,292,296,291,267,262,265,273,269,273,344,354,356,354,408,400,528,519,578,569,540,524]} 1. e4 {[%emt 0:00:04]} c5 {[%emt 0:00:35]} 2. Nf3 {[%emt 0:00:11]} g6 {[%emt 0:00:03]} 3. c3 {[%emt 0:00:11]} d5 {[%emt 0:00:50]} 4. exd5 {[%emt 0:00:10]} Qxd5 {[%emt 0:00:11]} 5. d4 {[%emt 0:00:10]} Bg7 {[%emt 0:01:22]} 6. Na3 {[%emt 0:08:09]} cxd4 {[%emt 0:00:57]} 7. Nb5 {[%emt 0:00:27]} Na6 {[%emt 0:00:31]} 8. Be3 {[%emt 0:01:53]} Nf6 $1 {[%emt 0:02:11] B06: Modern Defence.} 9. Qxd4 {[%emt 0:01:24]} b6 {[%emt 0:14:38] is the legacy move (9...0-0).} 10. Bc4 {[%emt 0:38:55]} Qxd4 {[%emt 0:00:43] The position is equal.} 11. Bxd4 {[%emt 0:02:00]} Bb7 {[%emt 0:03:19]} 12. O-O {[%emt 0:02:57] Rfe1 is the strong threat.} (12. O-O-O $5 {[%cal Rh1e1]}) 12... O-O {[%emt 0:00:34]} 13. Rfe1 {[%emt 0:00:15] [#]} e6 $146 {[%emt 0:09:05]} ({Predecessor:} 13... Rfc8 14. Rxe7 Bxf3 15. Bxf7+ Kf8 16. Rae1 Be4 17. Bxf6 Bxf6 18. R7xe4 Nc5 19. Bd5 Nxe4 20. Bxa8 Nxc3 21. Nxc3 Rxa8 {½-½ (37) Afek,Y (2316)-Kulaots,K (2550) Gausdal 2006}) 14. a4 {[%emt 0:03:27][%cal Ba2a4,Ba4a5][%mdl 32]} Bd5 {[%emt 0:07:51]} 15. Bxf6 {[%emt 0:08:55]} Bxf6 {[%emt 0:16:51]} 16. Bxd5 {[%emt 0:00:52]} exd5 {[%emt 0:00:01]} 17. a5 {[%emt 0:07:07] White is more active.} Rfd8 {[%emt 0:07:21]} (17... Rab8 $1 $11) 18. h4 {[%emt 0:05:42]} h5 {[%emt 0:07:12]} 19. g3 {[%emt 0:00:13]} Kg7 {[%emt 0:02:17]} 20. Red1 {[%emt 0:05:00]} Nc5 {[%emt 0:05:16]} 21. Nc7 {[%emt 0:00:33]} (21. axb6 {simplifies} axb6 22. Rxa8 Rxa8 23. Rxd5 Ra2 24. Nc7) 21... Rac8 {[%emt 0:01:36]} 22. axb6 {[%emt 0:00:17]} ({Don't play} 22. Nxd5 $6 Nb3 23. Rab1 Nxa5 $11) 22... axb6 {[%emt 0:00:08]} 23. Nxd5 {[%emt 0:00:12]} b5 {[%emt 0:01:12]} 24. Nxf6 {[%emt 0:03:37] Pair of Knights!} Rxd1+ {[%emt 0:00:03] This costs Black the game.} (24... Kxf6 $16 25. Rxd8 Rxd8) 25. Rxd1 $18 {[%emt 0:00:11]} Kxf6 $16 {[%emt 0:00:02][%mdl 4096] Endgame [#] KRN-KRN} 26. Rd6+ $1 {[%emt 0:00:31]} Ke7 {[%emt 0:06:17]} 27. Rb6 {[%emt 0:00:10]} Ra8 {[%emt 0:00:03]} 28. Rxb5 {[%emt 0:00:14]} Ra1+ {[%emt 0:00:02]} 29. Kg2 {[%emt 0:00:24]} Nd3 {[%emt 0:00:06]} 30. Rb7+ {[%emt 0:01:05]} Ke8 {[%emt 0:00:32]} 31. Ng5 {[%emt 0:00:55]} f6 {[%emt 0:01:55]} 32. Ne4 {[%emt 0:00:51]} f5 {[%emt 0:01:28]} 33. Nf6+ {[%emt 0:00:08]} Kf8 {[%emt 0:00:09]} 34. Nd5 {[%emt 0:00:58]} Rd1 {[%emt 0:02:46]} 35. Nf4 {[%emt 0:00:31]} Ne5 {[%emt 0:00:14]} 36. Rb5 {[%emt 0:00:30] White is clearly winning.} Ng4 {[%emt 0:00:59]} 37. Nxg6+ {[%emt 0:00:19]} Kg7 {[%emt 0:00:03]} 38. Ne5 {[%emt 0:01:56] Weighted Error Value: White=0.08 (flawless) /Black=0.32} 1-0

[Event "FIDE WSCC 50 2022"]
[Site "Assisi"]
[Date "2022.11.26"]
[Round "11.13"]
[White "Jhunjhnuwala, Krishan"]
[Black "Mantovani, Renzo"]
[Result "0-1"]
[ECO "C45"]
[WhiteElo "2326"]
[BlackElo "2246"]
[Annotator "TA"]
[PlyCount "83"]
[EventDate "2022.11.14"]
[EventType "swiss"]
[EventCountry "ITA"]
[SourceTitle "playchess.com"]
[Source "ChessBase"]
[SourceQuality "1"]
[TimeControl "40/5400+30:1800+30"]

{[%evp 15,83,0,7,-27,-21,-10,-16,-20,-14,-55,-39,-38,-62,-53,-35,-45,0,0,0,0,6,14,0,-50,-31,-29,-18,-112,-57,-132,-75,-73,-56,-87,-80,-108,-73,-74,-74,-89,-105,-86,-53,-102,-100,-114,-97,-110,-74,-191,-82,-177,-102,-206,-207,-317,-317,-311,-314,-309,-298,-297,-241,-313,-301,-313,-268,-283,-300,-288]} 1. e4 {[%emt 0:00:04]} e5 {[%emt 0:00:25]} 2. Nf3 {[%emt 0:00:30]} Nc6 {[%emt 0:00:11]} 3. d4 {[%emt 0:00:08]} exd4 {[%emt 0:01:52]} 4. Nxd4 {[%emt 0:00:04]} Bc5 {[%emt 0:04:45]} 5. Nb3 {[%emt 0:00:14]} Bb6 {[%emt 0:03:48]} 6. Nc3 {[%emt 0:00:15]} d6 {[%emt 0:01:01]} 7. a4 {[%emt 0:02:40]} a6 {[%emt 0:17:29]} 8. Nd5 {[%emt 0:06:17] The old main line.} Ba7 {[%emt 0:02:08]} 9. Qe2 {[%emt 0:05:05] C45: Scotch Game.} Be6 {[%emt 0:07:11]} 10. Be3 {[%emt 0:01:39]} Bxe3 {[%emt 0:03:11]} 11. Qxe3 {[%emt 0:00:16] The position is equal.} Nf6 {[%emt 0:01:16]} 12. O-O-O {[%emt 0:05:11]} O-O $1 {[%emt 0:02:50]} 13. Nxf6+ {[%emt 0:15:52]} Qxf6 {[%emt 0:00:13]} 14. Nd4 {[%emt 0:01:16] [#]} Rfe8 $146 {[%emt 0:01:54]} ({Predecessor:} 14... Bd7 15. f3 Rfe8 16. Bc4 Ne5 17. Bb3 b5 18. axb5 axb5 19. Ne2 Be6 20. Kb1 Ra6 {0-1 (34) Vajda,A (2180)-Petran,P (2485) Budapest 1993}) 15. f3 {[%emt 0:01:45]} Qe5 {[%emt 0:02:07]} 16. Nxe6 {[%emt 0:01:45]} Qxe6 {[%emt 0:01:50]} 17. Qc3 {[%emt 0:02:28]} Qa2 {[%emt 0:02:03]} 18. b3 $1 {[%emt 0:03:53]} Qa3+ {[%emt 0:00:09]} 19. Qb2 {[%emt 0:04:16]} ({White should try} 19. Kb1 $1 $11) 19... Qb4 {[%emt 0:04:55]} (19... Qc5 {looks sharper.} 20. c3 b5 21. b4 Qh5) 20. c3 {[%emt 0:04:33]} Qa5 {[%emt 0:09:24]} 21. c4 {[%emt 0:09:11] [#]} (21. Rd5 $11 Qb6 22. Kb1) 21... Re5 {[%emt 0:06:38]} (21... Nb4 $1 $17 22. g4 c6) 22. h4 {[%emt 0:01:13] [#]} ({White should play} 22. Qd2 $15) 22... Qc5 {[%emt 0:11:34]} (22... Nb4 $142 $1 23. g4 b5 24. cxb5 axb5 25. Bxb5 Rxb5 26. axb5 Qxb5) 23. Kb1 $17 {[%emt 0:01:22]} Qe3 {[%emt 0:01:00]} 24. h5 {[%emt 0:03:33]} h6 {[%emt 0:00:17]} 25. Be2 {[%emt 0:03:26]} Rae8 {[%emt 0:09:03]} 26. Rd3 {[%emt 0:02:01] Prevents f5.} Qc5 {[%emt 0:01:23]} 27. Rd5 {[%emt 0:03:16]} Qf2 {[%emt 0:00:35]} 28. Bd1 {[%emt 0:06:26]} Qb6 {[%emt 0:01:08]} 29. Rd2 {[%emt 0:01:55]} (29. g4 $15) 29... Qe3 {[%emt 0:00:53]} 30. Be2 {[%emt 0:02:11]} Nb4 {[%emt 0:00:28]} 31. Bd1 {[%emt 0:01:43]} a5 {[%emt 0:01:27] Black is much more active.} 32. Rh4 {[%emt 0:00:37]} (32. Qd4 $17 Qxd4 33. Rxd4) 32... Rg5 {[%emt 0:01:16]} (32... Qe1 $19 33. Rg4 f6) 33. Rh1 {[%emt 0:01:35]} (33. g4 $17 {is a better defense.}) 33... b6 {[%emt 0:00:18]} (33... Ree5 $19 34. Re2 Qf4) 34. Rf1 {[%emt 0:00:25]} (34. Re2 $17 Qf4 35. Qd2 Qxd2 36. Rxd2) 34... Rxh5 $19 {[%emt 0:00:35][%cal Bg5h5,Bh5h3,Bh3g3,Bg3g2][%mdl 32]} 35. g3 {[%emt 0:01:28]} (35. Re2 $142 Qg5 36. Qd2) 35... Rh3 {[%emt 0:00:47]} 36. g4 {[%emt 0:00:22]} Rg3 {[%emt 0:00:10]} 37. Qd4 {[%emt 0:00:47]} Qxd4 {[%emt 0:00:12]} 38. Rxd4 {[%emt 0:00:03]} Rg2 {[%emt 0:00:21] Inhibits Rd2.} 39. f4 {[%emt 0:00:55]} Rg3 {[%emt 0:01:17] Prevents e5. Black has a decisive advantage.} 40. Bf3 {[%emt 0:00:43]} g5 {[%emt 0:00:27]} 41. e5 {[%emt 0:31:38]} dxe5 {[%emt 0:30:55]} 42. fxe5 {[%emt 0:00:58] Weighted Error Value: White=0.32/Black=0.19 (very precise)} 0-1

[Event "FIDE WSCC 50 2022"]
[Site "Assisi"]
[Date "2022.11.26"]
[Round "11.14"]
[White "Krizsany, Laszlo"]
[Black "Teo, Kok Siong"]
[Result "1-0"]
[ECO "E94"]
[WhiteElo "2371"]
[BlackElo "2142"]
[Annotator "TA"]
[PlyCount "88"]
[EventDate "2022.11.14"]
[EventType "swiss"]
[EventCountry "ITA"]
[SourceTitle "playchess.com"]
[Source "ChessBase"]
[SourceQuality "1"]
[TimeControl "40/5400+30:1800+30"]

{[%evp 18,88,71,64,92,62,75,56,57,57,68,43,49,57,60,55,60,42,94,97,91,0,0,31,101,102,157,107,129,131,131,140,125,33,52,17,48,61,73,0,64,63,52,69,115,72,147,142,149,145,138,106,151,157,163,177,162,139,526,515,529,529,585,578,560,556,550,533,634,631,618,576,762]} 1. d4 {[%emt 0:00:04]} g6 {[%emt 0:00:36]} 2. c4 {[%emt 0:00:14]} Bg7 {[%emt 0:00:05]} 3. e4 {[%emt 0:00:11]} d6 {[%emt 0:00:13]} 4. Nc3 {[%emt 0:00:24]} Nd7 {[%emt 0:00:31]} 5. Be2 {[%emt 0:02:05]} e5 {[%emt 0:00:37]} 6. Nf3 {[%emt 0:01:33]} Ngf6 {[%emt 0:01:43]} 7. O-O {[%emt 0:01:43]} O-O {[%emt 0:00:19]} 8. Be3 {[%emt 0:06:58]} Qe7 {[%emt 0:11:51]} 9. Qc2 {[%emt 0:06:13]} c6 {[%emt 0:00:22]} 10. d5 {[%emt 0:01:54]} c5 {[%emt 0:07:31] E94: King's Indian: Classical: 6 Be2 e5 7 0-0: Various Black 7th moves.} 11. Ne1 {[%emt 0:06:57] White is more active.} Ne8 {[%emt 0:03:09]} 12. a3 {[%emt 0:03:17]} f5 {[%emt 0:01:19] White is slightly better.} 13. f3 {[%emt 0:00:09]} f4 {[%emt 0:00:37]} 14. Bf2 {[%emt 0:00:07]} g5 {[%emt 0:00:44]} 15. b4 {[%emt 0:00:57] [#]} b6 $146 {[%emt 0:00:34]} ({Predecessor:} 15... Rf6 16. Nd3 Rh6 17. bxc5 Nxc5 18. Nxc5 dxc5 19. d6 Qf7 20. g4 fxg3 21. Bxg3 Nxd6 {0-1 (58) Choisy,M-Sarquis,M Heraklion 2002}) 16. Rb1 {[%emt 0:01:52]} Ndf6 {[%emt 0:00:42]} 17. bxc5 {[%emt 0:00:50]} dxc5 {[%emt 0:03:55] [#]} (17... bxc5 $14 18. Nd3 Nc7) 18. a4 $1 $16 {[%emt 0:01:41]} g4 {[%emt 0:01:47][%cal Og4g3] Against a5} 19. a5 {[%emt 0:01:07] Against g3} (19. Bh4 $16) 19... g3 $1 $14 {[%emt 0:00:46]} 20. hxg3 {[%emt 0:00:25] Threatens to win with g4.} fxg3 {[%emt 0:00:05]} (20... Nh5 $1 $14 21. gxf4 (21. axb6 $2 fxg3 22. f4 gxf2+ 23. Rxf2 Nxf4 $19) 21... exf4 22. axb6 axb6) 21. Bxg3 $16 {[%emt 0:01:15]} Nh5 {[%emt 0:00:26]} 22. Bh2 {[%emt 0:11:29]} ({Better is} 22. Bf2) 22... Bh6 {[%emt 0:03:59]} 23. g4 {[%emt 0:02:24]} (23. axb6 $6 Be3+ 24. Rf2 (24. Kh1 $2 Qh4 $19) 24... axb6 $11) 23... Be3+ {[%emt 0:19:17]} 24. Kh1 {[%emt 0:00:14]} Nf4 {[%emt 0:00:14]} 25. Nd1 {[%emt 0:11:23]} (25. axb6 axb6 26. Ng2 (26. Rxb6 h5 $11) 26... Nxg2 $11) ({White should play} 25. Bd3 $16) 25... Bd4 $1 $14 {[%emt 0:00:34]} 26. Nd3 {[%emt 0:00:58]} Qh4 {[%emt 0:02:56]} 27. Nxf4 {[%emt 0:08:11]} exf4 {[%emt 0:04:08]} 28. Nb2 {[%emt 0:01:03]} ({White should try} 28. Qd2 $16) 28... Rf6 {[%emt 0:01:30] [#]} (28... h5 $1 $11) 29. Rg1 $1 {[%emt 0:05:28][%cal Oe4e5]} Nd6 {[%emt 0:06:14] Inhibits e5.} (29... Rh6 30. Rg2 $16) 30. Nd3 $36 {[%emt 0:03:24][%cal Oe4e5][%mdl 2048] aiming for e5! White has good play. Dancing on a razor blade.} Nf7 {[%emt 0:00:49] Inhibits e5.} (30... Bxg1 $14 31. Rxg1 (31. Kxg1 Bxg4 32. fxg4 f3 $11) 31... Rh6) 31. Rg2 {[%emt 0:04:19] Hoping for Qa4.} Ne5 {[%emt 0:01:14]} (31... Bd7 $142) 32. Nxe5 $16 {[%emt 0:00:55]} Bxe5 {[%emt 0:00:07] [#]} 33. Qa4 $1 {[%emt 0:00:19] Prevents Bd7. And now Qe8+ would win.} Ba6 {[%emt 0:13:32]} 34. Qd7 {[%emt 0:00:47] g5 is the strong threat.} Rd6 {[%emt 0:00:35] Against g5} 35. Qf5 {[%emt 0:07:19]} Re8 {[%emt 0:00:20]} 36. Qh5 {[%emt 0:01:36]} Qe7 {[%emt 0:02:23]} 37. axb6 {[%emt 0:00:36]} Rxb6 {[%emt 0:00:23][%mdl 8192] Black cannot hold the game after this.} (37... axb6 $16 {is more resistant.} 38. Rb3 Bb7) 38. Rxb6 $18 {[%emt 0:01:05] White is clearly winning.} axb6 {[%emt 0:00:03]} 39. g5 {[%emt 0:00:30][%cal Bg4g5,Bg5g6][%mdl 32]} ({Not} 39. Qh6 Qd6 40. Qg5+ (40. Qh5 Qg6 $18) 40... Kf7 $18) 39... Kg7 {[%emt 0:00:44]} 40. Qh6+ {[%emt 0:03:16]} Kh8 {[%emt 0:02:20]} 41. g6 {[%emt 0:30:36]} Qg7 {[%emt 0:30:26]} 42. Bxf4 {[%emt 0:00:00]} Bxf4 {[%emt 0:00:00]} 43. Qxf4 {[%emt 0:00:00] Strongly threatening d6.} hxg6 {[%emt 0:00:00]} 44. Qg5 {[%emt 0:00:00]} Kh7 {[%emt 0:00:00] Weighted Error Value: White=0.16 (very precise) /Black=0.37} 1-0

[Event "FIDE WSCC 50 2022"]
[Site "Assisi"]
[Date "2022.11.26"]
[Round "11.15"]
[White "Arkell, Keith C"]
[Black "Kantorik, Marian"]
[Result "1-0"]
[ECO "A12"]
[WhiteElo "2408"]
[BlackElo "2171"]
[Annotator "TA"]
[PlyCount "80"]
[EventDate "2022.11.14"]
[EventType "swiss"]
[EventCountry "ITA"]
[SourceTitle "playchess.com"]
[Source "ChessBase"]
[SourceQuality "1"]
[TimeControl "40/5400+30:1800+30"]

{[%evp 9,80,17,16,-14,-20,-96,-7,-22,-18,-20,-9,-30,19,6,23,18,40,40,44,43,43,43,47,40,49,46,54,61,39,42,61,66,62,56,58,58,83,72,111,84,95,59,47,0,10,0,0,0,43,0,43,0,0,0,-7,0,0,-20,0,-10,17,-5,0,0,0,0,0,0,0,0,0,-12,83]} 1. c4 {[%emt 0:00:01]} c6 {[%emt 0:04:33]} 2. Nf3 {[%emt 0:00:08]} d5 {[%emt 0:00:07]} 3. b3 {[%emt 0:00:23]} Nf6 {[%emt 0:02:25]} 4. Bb2 {[%emt 0:00:06]} g6 {[%emt 0:00:33]} 5. cxd5 {[%emt 0:00:14]} cxd5 {[%emt 0:00:15]} 6. Bxf6 {[%emt 0:00:09] A12: English Opening: 1...c6 with b3 by White.} exf6 {[%emt 0:00:06]} 7. d4 {[%emt 0:00:03]} (7. e3 $11) 7... Bg7 {[%emt 0:00:34]} ({Better is} 7... Qa5+ $17 8. Nbd2 Ba3) 8. g3 {[%emt 0:00:17]} O-O {[%emt 0:00:13]} 9. Bg2 {[%emt 0:00:02] [#]} Nc6 $146 {[%emt 0:00:38]} ({Predecessor:} 9... f5 10. e3 Nd7 11. Nbd2 Nf6 12. O-O Ne4 13. Ne5 Qd6 14. Ndf3 g5 15. Nd3 Bh6 {½-½ (43) Katkov,V (2018)-Aloyan,M (1759) Voronezh 2018}) 10. O-O {[%emt 0:00:08]} Bf5 {[%emt 0:02:58]} (10... Be6 {is more appropriate.}) 11. Nc3 $11 {[%emt 0:00:29]} Be4 {[%emt 0:02:26]} 12. e3 {[%emt 0:00:18]} Qd7 {[%emt 0:00:20]} 13. Ne1 {[%emt 0:01:05][%cal Bf3e1,Be1d3,Bd3f4][%mdl 32]} Bxg2 {[%emt 0:05:02]} 14. Kxg2 {[%emt 0:00:04]} Rfd8 {[%emt 0:00:50]} 15. Nd3 {[%emt 0:00:36]} Rac8 {[%emt 0:01:49][%cal Oc6d4]} 16. Rc1 {[%emt 0:00:16]} Bf8 {[%emt 0:01:44]} 17. Nf4 {[%emt 0:16:19]} Ne7 {[%emt 0:02:38]} 18. Qf3 {[%emt 0:01:58][%cal Oc3d5]} Rc6 {[%emt 0:04:58]} 19. Na4 {[%emt 0:01:48]} Nf5 {[%emt 0:02:12]} 20. Nc5 {[%emt 0:11:09]} Bxc5 {[%emt 0:06:20]} 21. dxc5 {[%emt 0:00:48]} Ne7 {[%emt 0:06:10]} 22. Rfd1 {[%emt 0:00:53][%cal Bf1d1,Bd1d2,Bd2c2][%mdl 32]} Kg7 {[%emt 0:05:59]} 23. b4 {[%emt 0:01:17][%cal Bb3b4,Bb4b5][%mdl 32] White is more active.} Qf5 {[%emt 0:01:37]} 24. b5 {[%emt 0:03:37]} Rc7 {[%emt 0:02:54]} 25. Nd3 {[%emt 0:00:38]} Qe4 {[%emt 0:01:56]} 26. Rc2 {[%emt 0:08:30]} (26. a3 $14) 26... f5 {[%emt 0:03:21]} 27. Rdd2 {[%emt 0:03:44]} Rdc8 {[%emt 0:07:16]} 28. Rc3 {[%emt 0:02:05]} Kf6 {[%emt 0:05:09]} 29. Rdc2 {[%emt 0:01:05]} (29. Ra3 $5 {[%cal Ra3a7]}) 29... g5 {[%emt 0:01:11]} 30. Nc1 {[%emt 0:08:00]} (30. a3 {with more complications.} d4 31. exd4 Rd8 32. Qxe4 fxe4 33. Nb4) 30... Ng6 {[%emt 0:05:16][%cal Be7g6,Bg6e5,Be5d3][%mdl 32] The position is equal.} 31. Qxe4 {[%emt 0:00:41]} fxe4 {[%emt 0:00:23]} 32. Nb3 {[%emt 0:02:10]} Ne5 {[%emt 0:01:11]} 33. Kf1 {[%emt 0:07:08]} ({Don't play} 33. Nd4 Nd3 34. Kf1 Rxc5 35. Rxc5 Rxc5 36. Rxc5 Nxc5 $17) 33... g4 {[%emt 0:03:59]} 34. Ke2 {[%emt 0:00:52]} h5 {[%emt 0:03:11]} 35. a4 {[%emt 0:00:54][%cal Ba2a4,Ba4a5,Ba5b6][%mdl 32]} Nd3 {[%emt 0:03:34]} 36. a5 {[%emt 0:01:25]} Nb4 {[%emt 0:00:59] Against c6} 37. Rd2 {[%emt 0:00:42] [#] And now Rd4 would win.} Nd3 {[%emt 0:00:13][%cal Rd3c5]} 38. b6 {[%emt 0:10:37]} axb6 {[%emt 0:00:36]} 39. axb6 {[%emt 0:00:05]} Rc6 {[%emt 0:00:28]} 40. Rcc2 {[%emt 0:16:57]} ({But not} 40. Na5 $2 Rxc5 41. Rxc5 Rxc5 42. Nxb7 Rc6 $19) 40... Ke5 {[%emt 0:05:51] Weighted Error Value: White=0.15 (very precise) /Black=0.15 (very precise)} (40... Ke7 $11) 1-0